lending/lending_fUSD_20250425
["ID","MTS","AMOUNT","RATE_DAILY","PERIOD"]
[358922710,1745545796933,-1703.57,0.00047397,30]
[358922711,1745545796978,-536.68,0.00047397,30]
[358922712,1745545797028,-661.83,0.00047397,30]
[358922713,1745545797081,-671.65,0.00047397,30]
[358922714,1745545797134,-500.0,0.00047397,30]
[358922715,1745545797185,-990.25,0.00047397,30]
[358922716,1745545797238,-500.0,0.00047397,30]
[358922717,1745545797284,-1139.46,0.00047397,30]
[358922718,1745545797337,-1291.84,0.00047397,30]
[358922719,1745545797380,-500.0,0.00047397,30]
[358922720,1745545797432,-500.0,0.00047397,30]
[358922721,1745545797477,-1491.54,0.00047397,30]
[358922722,1745545797520,-500.0,0.00047397,30]
[358922723,1745545797572,-500.0,0.00047397,30]
[358922724,1745545797625,-500.0,0.00047397,30]
[358922725,1745545797682,-1377.9,0.00047397,30]
[358922726,1745545797730,-500.0,0.00047397,30]
[358922727,1745545797775,-1021.1,0.00047397,30]
[358922728,1745545797819,-300.99046014,0.00047397,30]
[358922729,1745545797862,-500.0,0.00047397,30]
[358922730,1745545797917,-944.01,0.00047397,30]
[358922731,1745545797962,-500.0,0.00047397,30]
[358922732,1745545798016,-1148.56,0.00047397,30]
[358922733,1745545798068,-1758.33,0.00047397,30]
[358922734,1745545798124,-500.0,0.00047397,30]
[358922735,1745545798169,-1342.47,0.00047397,30]
[358922736,1745545798226,-500.0,0.00047397,30]
[358922737,1745545798525,-500.0,0.00047397,30]
[358922738,1745545798571,-500.0,0.00047397,30]
[358922739,1745545798616,-780.33,0.00047397,30]
[358922740,1745545798658,-500.0,0.00047397,30]
[358922741,1745545798711,-602.51,0.00047397,30]
[358922742,1745545798756,-1899.46,0.00047397,30]
[358922743,1745545798798,-1269.73,0.00047671,30]
[358922744,1745545798838,-500.0,0.00047671,30]
[358922745,1745545798879,-1618.3,0.00047671,30]
[358922746,1745545798920,-500.0,0.00047671,30]
[358922747,1745545798963,-500.0,0.00047671,30]
[358922748,1745545799003,-1638.07,0.00047671,30]
[358922749,1745545799046,-703.28,0.00047671,30]
[358922750,1745545799088,-1425.46,0.00047671,30]
[358922751,1745545799128,-638.66,0.00047671,30]
[358922752,1745545799169,-500.0,0.00047671,30]
[358922753,1745545799210,-1729.94,0.00047671,30]
[358922754,1745545799251,-500.0,0.00047671,30]
[358922755,1745545799292,-500.0,0.00047671,30]
[358922756,1745545799334,-561.61,0.00047671,30]
[358922757,1745545799380,-950.46,0.00047671,30]
[358922758,1745545799429,-500.0,0.00047671,30]
[358922759,1745545799474,-1212.18,0.00047671,30]
[358922760,1745545799518,-500.0,0.00047671,30]
[358922761,1745545799566,-1343.3,0.00047671,30]
[358922762,1745545799609,-571.58,0.00047671,30]
[358922763,1745545799650,-855.98,0.00047671,30]
[358922764,1745545799692,-500.0,0.00047671,30]
[358922765,1745545799733,-2120.78,0.00047671,30]
[358922766,1745545799774,-500.0,0.00047671,30]
[358922767,1745545799814,-603.73,0.00047671,30]
[358922768,1745545799854,-500.0,0.00047671,30]
[358922769,1745545799897,-500.0,0.00047671,30]
[358922770,1745545799939,-500.0,0.00047671,30]
[358922771,1745545799983,-1895.22,0.00047671,30]
[358922772,1745545800041,-500.0,0.00047671,30]
[358922773,1745545800098,-500.0,0.00047671,30]
[358922774,1745545800146,-1806.09,0.00047671,30]
[358922775,1745545800194,-500.0,0.00047671,30]
[358922776,1745545800252,-530.66,0.00047671,30]
[358922777,1745545800296,-500.0,0.00047671,30]
[358922778,1745545800340,-1185.38,0.00047671,30]
[358922779,1745545800385,-500.0,0.00047671,30]
[358922780,1745545800432,-4344.84,0.00047671,30]
[358922781,1745545800477,-500.0,0.00047671,30]
[358922782,1745545800521,-1235.46,0.00047671,30]
[358922783,1745545800564,-300.0,0.00047671,30]
[358922784,1745545800607,-500.0,0.00047671,30]
[358922785,1745545800650,-500.0,0.00047671,30]
[358922786,1745545800691,-500.0,0.00047671,30]
[358922787,1745545800732,-718.37,0.00047671,30]
[358922788,1745545800775,-500.0,0.00047671,30]
[358922789,1745545800817,-500.0,0.00047671,30]
[358922790,1745545800862,-500.0,0.00047671,30]
[358922791,1745545800906,-681.27,0.00047671,30]
[358922792,1745545800954,-547.91,0.00047671,30]
[358922793,1745545801002,-1064.4,0.00047671,30]
[358922794,1745545801054,-300.0,0.00047671,30]
[358922795,1745545801103,-536.61,0.00047671,30]
[358922796,1745545801151,-959.99,0.00047671,30]
[358922797,1745545801197,-956.25,0.00047671,30]
[358922798,1745545801244,-606.43,0.00047671,30]
[358922799,1745545801291,-755.51,0.00047671,30]
[358922800,1745545801338,-557.16,0.00047671,30]
[358922801,1745545801384,-4110.61,0.00047671,30]
[358922802,1745545801430,-500.0,0.00047671,30]
[358922803,1745545801478,-1699.47,0.00047671,30]
[358922804,1745545801526,-751.49,0.00047671,30]
[358922805,1745545801575,-151.06100745,0.00047671,30]
[358922806,1745545801628,-500.0,0.00047671,30]
[358922807,1745545801676,-2518.36,0.00047671,30]
[358922808,1745545801723,-500.0,0.00047671,30]
[358922809,1745545801769,-500.0,0.00047671,30]
[358922810,1745545801815,-1672.29,0.00047671,30]
[358922811,1745545801863,-219.38606315,0.00047671,30]
[358922812,1745545801911,-500.0,0.00047671,30]
[358922813,1745545801958,-500.0,0.00047671,30]
[358922814,1745545802006,-1749.57,0.00047671,30]
[358922815,1745545802053,-500.0,0.00047671,30]
[358922816,1745545802101,-500.0,0.00047671,30]
[358922817,1745545802149,-637.35,0.00047671,30]
[358922818,1745545802198,-500.0,0.00047671,30]
[358922819,1745545802246,-500.0,0.00047671,30]
[358922820,1745545802295,-1031.46,0.00047671,30]
[358922821,1745545802343,-1188.42,0.00047671,30]
[358922822,1745545802394,-1886.1,0.00047671,30]
[358922823,1745545802441,-500.0,0.00047671,30]
[358922824,1745545802490,-500.0,0.00047671,30]
[358922825,1745545802537,-500.0,0.00047671,30]
[358922826,1745545802585,-500.0,0.00047671,30]
[358922827,1745545802633,-565.55,0.00047671,30]
[358922828,1745545802680,-500.0,0.00047671,30]
[358922829,1745545802727,-499.64641165,0.00047671,30]
[358922830,1745545802773,-1760.17,0.00047671,30]
[358922831,1745545802818,-500.0,0.00047671,30]
[358922832,1745545802865,-168.39729552,0.00047671,30]
[358922833,1745545802910,-500.0,0.00047671,30]
[358922834,1745545802955,-500.0,0.00047671,30]
[358922835,1745545803001,-583.6,0.00047671,30]
[358922836,1745545803055,-1331.75,0.00047671,30]
[358922837,1745545803108,-500.0,0.00047671,30]
[358922838,1745545803160,-259.7,0.00047671,30]
[358922839,1745545803211,-1291.79,0.00047671,30]
[358922840,1745545803263,-270.49545731,0.00047671,30]
[358922841,1745545803491,-500.0,0.00047671,30]
[358922842,1745545803545,-500.0,0.00047671,30]
[358922843,1745545803592,-1098.22,0.00047671,30]
[358922844,1745545803649,-7163.15,0.00047671,30]
[358922845,1745545803705,-887.54,0.00047671,30]
[358922846,1745545803758,-1248.48,0.00047671,30]
[358922847,1745545803812,-500.0,0.00047671,30]
[358922848,1745545803872,-500.0,0.00047671,30]
[358922849,1745545803924,-500.0,0.00047671,30]
[358922850,1745545803978,-1651.06,0.00047671,30]
[358922851,1745545804033,-2239.84,0.00047671,30]
[358922852,1745545804090,-500.0,0.00047671,30]
[358922853,1745545804144,-508.52,0.00047671,30]
[358922854,1745545804199,-500.0,0.00047671,30]
[358922855,1745545804251,-500.0,0.00047671,30]
[358922856,1745545804302,-500.0,0.00047671,30]
[358922857,1745545804353,-864.33,0.00047671,30]
[358922858,1745545804407,-505.78,0.00047671,30]
[358922859,1745545804459,-632.89,0.00047671,30]
[358922860,1745545804511,-1001.68,0.00047671,30]
[358922861,1745545804564,-500.0,0.00047671,30]
[358922862,1745545804611,-500.0,0.00047671,30]
[358922863,1745545804661,-1483.77,0.00047671,30]
[358922864,1745545804713,-500.0,0.00047671,30]
[358922865,1745545804766,-1236.74,0.00047671,30]
[358922866,1745545804819,-500.0,0.00047671,30]
[358922867,1745545804871,-500.0,0.00047671,30]
[358922868,1745545804925,-547.04,0.00047671,30]
[358922869,1745545804976,-500.0,0.00047671,30]
[358922870,1745545805028,-500.0,0.00047671,120]
[358922871,1745545805082,-500.0,0.00047671,30]
[358922872,1745545805126,-551.27,0.00047671,30]
[358922873,1745545805169,-500.0,0.00047671,30]
[358922874,1745545805216,-500.0,0.00047671,30]
[358922875,1745545805266,-782.79,0.00047671,30]
[358922876,1745545805315,-500.0,0.00047671,30]
[358922877,1745545805365,-500.0,0.00047671,30]
[358922878,1745545805414,-500.0,0.00047671,30]
[358922879,1745545805465,-500.0,0.00047671,30]
[358922880,1745545805515,-500.0,0.00047671,30]
[358922881,1745545805565,-500.0,0.00047671,30]
[358922882,1745545805617,-1416.53,0.00047671,30]
[358922883,1745545805667,-500.0,0.00047671,30]
[358922884,1745545805719,-500.0,0.00047671,30]
[358922885,1745545805771,-894.51,0.00047671,30]
[358922886,1745545805825,-500.0,0.00047671,30]
[358922887,1745545805879,-500.0,0.00047671,30]
[358922888,1745545805931,-500.0,0.00047671,30]
[358922889,1745545805985,-1380.06,0.00047671,30]
[358922890,1745545806040,-500.0,0.00047671,30]
[358922891,1745545806095,-500.0,0.00047671,30]
[358922892,1745545806148,-1109.29,0.00047671,30]
[358922893,1745545806199,-500.0,0.00047671,30]
[358922894,1745545806250,-982.48,0.00047671,30]
[358922895,1745545806301,-1800.8,0.00047671,30]
[358922896,1745545806352,-612.25,0.00047671,30]
[358922897,1745545806404,-695.17,0.00047671,30]
[358922898,1745545806454,-884.99,0.00047671,30]
[358922899,1745545806504,-665.85,0.00047671,30]
[358922900,1745545806555,-1088.74,0.00047671,30]
[358922901,1745545806604,-500.0,0.00047671,30]
[358922902,1745545806652,-734.7,0.00047671,30]
[358922903,1745545806702,-1916.97,0.00047671,30]
[358922904,1745545806752,-596.84,0.00047671,30]
[358922905,1745545806803,-500.0,0.00047671,30]
[358922906,1745545806853,-509.35,0.00047671,30]
[358922907,1745545806903,-500.0,0.00047671,30]
[358922908,1745545806952,-500.0,0.00047671,30]
[358922909,1745545807001,-500.0,0.00047671,30]
[358922910,1745545807053,-500.0,0.00047671,30]
[358922911,1745545807102,-2215.94,0.00047671,30]
[358922912,1745545807150,-556.38,0.00047671,30]
[358922913,1745545807200,-500.0,0.00047671,30]
[358922914,1745545807250,-697.76,0.00047671,30]
[358922915,1745545807300,-4287.81,0.00047671,30]
[358922916,1745545807349,-500.0,0.00047671,30]
[358922917,1745545807402,-682.59,0.00047671,30]
[358922918,1745545807452,-737.75,0.00047671,30]
[358922919,1745545807501,-515.03,0.00047671,30]
[358922920,1745545807548,-765.05,0.00047671,30]
[358922921,1745545807596,-1045.74,0.00047671,30]
[358922922,1745545807645,-500.0,0.00047671,30]
[358922923,1745545807692,-500.0,0.00047671,30]
[358922924,1745545807740,-500.0,0.00047671,30]
[358922925,1745545807789,-520.26,0.00047671,30]
[358922926,1745545807836,-500.0,0.00047671,30]
[358922927,1745545807884,-500.0,0.00047671,30]
[358922928,1745545807933,-1909.5,0.00047671,30]
[358922929,1745545807983,-500.0,0.00047671,30]
[358922930,1745545808033,-500.0,0.00047671,30]
[358922931,1745545808088,-682.45,0.00047671,30]
[358922932,1745545808140,-574.53,0.00047671,30]
[358922933,1745545808190,-297.29645159,0.00047671,30]
[358922934,1745545808241,-500.0,0.00047671,30]
[358922935,1745545808291,-695.21,0.00047671,30]
[358922936,1745545808341,-500.0,0.00047671,30]
[358922937,1745545808391,-595.07,0.00047671,30]
[358922938,1745545808443,-500.0,0.00047671,30]
[358922939,1745545808494,-2006.28,0.00047671,30]
[358922940,1745545808547,-696.79,0.00047671,30]
[358922941,1745545808598,-484.85458379,0.00047671,30]
[358922942,1745545808649,-1703.57,0.00047671,30]
[358922943,1745545808700,-536.68,0.00047671,30]
[358922944,1745545808751,-661.83,0.00047671,30]
[358922945,1745545809004,-671.65,0.00047671,30]
[358922946,1745545809066,-453.58413108,0.00047671,30]
[358922947,1745545809120,-990.25,0.00047671,30]
[358922948,1745545809174,-500.0,0.00047671,30]
[358922949,1745545809225,-1139.46,0.00047671,30]
[358922950,1745545809276,-1291.84,0.00047671,30]
[358922951,1745545809327,-500.0,0.00047671,30]
[358922952,1745545809378,-500.0,0.00047671,30]
[358922953,1745545809429,-1491.54,0.00047671,30]
[358922954,1745545809480,-500.0,0.00047671,30]
[358922955,1745545809532,-500.0,0.00047671,30]
[358922956,1745545809583,-500.0,0.00047671,30]
[358922957,1745545809633,-1377.9,0.00047671,30]
[358922958,1745545809684,-500.0,0.00047671,30]
[358922959,1745545809734,-1021.1,0.00047671,30]
[358922960,1745545809784,-500.0,0.00047671,30]
[358922961,1745545809834,-944.01,0.00047671,30]
[358922962,1745545809885,-500.0,0.00047671,30]
[358922963,1745545809935,-1148.56,0.00047671,30]
[358922964,1745545809985,-1758.33,0.00047671,30]
[358922965,1745545810034,-500.0,0.00047671,30]
[358922966,1745545810087,-1342.47,0.00047671,30]
[358922967,1745545810135,-500.0,0.00047671,30]
[358922968,1745545810183,-500.0,0.00047671,30]
[358922969,1745545810231,-500.0,0.00047671,30]
[358922970,1745545810280,-780.33,0.00047671,30]
[358922971,1745545810328,-500.0,0.00047671,30]
[358922972,1745545810377,-602.51,0.00047671,30]
[358922973,1745545810426,-1899.46,0.00047671,30]
[358922974,1745545810475,-286.0,0.00047682,90]
[358922975,1745545810525,-740.72,0.000478,60]
[358922976,1745545810576,-1269.73,0.00047945,30]
[358922977,1745545810624,-500.0,0.00047945,30]
[358922978,1745545810673,-1618.3,0.00047945,30]
[358922979,1745545810722,-500.0,0.00047945,30]
[358922980,1745545810771,-500.0,0.00047945,30]
[358922981,1745545810821,-1638.07,0.00047945,30]
[358922982,1745545810870,-703.28,0.00047945,30]
[358922983,1745545810918,-1425.46,0.00047945,30]
[358922984,1745545810967,-638.66,0.00047945,30]
[358922985,1745545811015,-1729.94,0.00047945,30]
[358922986,1745545811063,-500.0,0.00047945,30]
[358922987,1745545811111,-500.0,0.00047945,30]
[358922988,1745545811160,-500.0,0.00047945,30]
[358922989,1745545811210,-561.61,0.00047945,30]
[358922990,1745545811260,-950.46,0.00047945,30]
[358922991,1745545811310,-500.0,0.00047945,30]
[358922992,1745545811358,-1212.18,0.00047945,30]
[358922993,1745545811408,-500.0,0.00047945,30]
[358922994,1745545811459,-1343.3,0.00047945,30]
[358922995,1745545811508,-571.58,0.00047945,30]
[358922996,1745545811555,-855.98,0.00047945,30]
[358922997,1745545811603,-500.0,0.00047945,30]
[358922998,1745545811651,-2120.78,0.00047945,30]
[358922999,1745545811698,-500.0,0.00047945,30]
[358923000,1745545811745,-603.73,0.00047945,30]
[358923001,1745545811792,-500.0,0.00047945,30]
[358923002,1745545811842,-500.0,0.00047945,30]
[358923003,1745545811890,-500.0,0.00047945,30]
[358923004,1745545811939,-1895.22,0.00047945,30]
[358923005,1745545811986,-500.0,0.00047945,30]
[358923006,1745545812032,-500.0,0.00047945,30]
[358923007,1745545812086,-1806.09,0.00047945,30]
[358923008,1745545812134,-500.0,0.00047945,30]
[358923009,1745545812180,-530.66,0.00047945,30]
[358923010,1745545812227,-500.0,0.00047945,30]
[358923011,1745545812275,-1185.38,0.00047945,30]
[358923012,1745545812320,-500.0,0.00047945,30]
[358923013,1745545812368,-4344.84,0.00047945,30]
[358923014,1745545812416,-500.0,0.00047945,30]
[358923015,1745545812466,-1235.46,0.00047945,30]
[358923016,1745545812514,-300.0,0.00047945,30]
[358923017,1745545812562,-500.0,0.00047945,30]
[358923018,1745545812607,-500.0,0.00047945,30]
[358923019,1745545812653,-500.0,0.00047945,30]
[358923020,1745545812699,-718.37,0.00047945,30]
[358923021,1745545812746,-500.0,0.00047945,30]
[358923022,1745545812791,-500.0,0.00047945,30]
[358923023,1745545812836,-500.0,0.00047945,30]
[358923024,1745545812881,-681.27,0.00047945,30]
[358923025,1745545812927,-547.91,0.00047945,30]
[358923026,1745545812971,-1064.4,0.00047945,30]
[358923027,1745545813017,-300.0,0.00047945,30]
[358923028,1745545813062,-536.61,0.00047945,30]
[358923029,1745545813106,-959.99,0.00047945,30]
[358923030,1745545813150,-956.25,0.00047945,30]
[358923031,1745545813195,-606.43,0.00047945,30]
[358923032,1745545813242,-4110.61,0.00047945,30]
[358923033,1745545813286,-755.51,0.00047945,30]
[358923034,1745545813331,-557.16,0.00047945,30]
[358923035,1745545813376,-500.0,0.00047945,30]
[358923036,1745545813422,-1699.47,0.00047945,30]
[358923037,1745545813468,-751.49,0.00047945,30]
[358923038,1745545813516,-500.0,0.00047945,30]
[358923039,1745545813565,-2518.36,0.00047945,30]
[358923040,1745545813615,-500.0,0.00047945,30]
[358923041,1745545813667,-500.0,0.00047945,30]
[358923042,1745545813720,-1672.29,0.00047945,30]
[358923043,1745545813770,-500.0,0.00047945,30]
[358923044,1745545813820,-500.0,0.00047945,30]
[358923045,1745545813877,-1749.57,0.00047945,30]
[358923046,1745545813926,-384.56367088,0.00047945,30]
[358923047,1745545813975,-500.0,0.00047945,30]
[358923048,1745545814023,-637.35,0.00047945,30]
[358923049,1745545814073,-500.0,0.00047945,30]
[358923050,1745545814305,-500.0,0.00047945,30]
[358923051,1745545814357,-1031.46,0.00047945,30]
[358923052,1745545814408,-1188.42,0.00047945,30]
[358923053,1745545814459,-1886.1,0.00047945,30]
[358923054,1745545814507,-500.0,0.00047945,30]
[358923055,1745545814556,-500.0,0.00047945,30]
[358923056,1745545814604,-500.0,0.00047945,30]
[358923057,1745545814651,-500.0,0.00047945,30]
[358923058,1745545814701,-565.55,0.00047945,30]
[358923059,1745545814749,-500.0,0.00047945,30]
[358923060,1745545814798,-1760.17,0.00047945,30]
[358923061,1745545814845,-500.0,0.00047945,30]
[358923062,1745545814894,-500.0,0.00047945,30]
[358923063,1745545814943,-500.0,0.00047945,30]
[358923064,1745545814993,-583.6,0.00047945,30]
[358923065,1745545815044,-1331.75,0.00047945,30]
[358923066,1745545815099,-309.16978284,0.00047945,30]
[358923067,1745545815147,-259.7,0.00047945,30]
[358923068,1745545815195,-1291.79,0.00047945,30]
[358923069,1745545815243,-517.67626257,0.00047945,30]
[358923070,1745545815291,-500.0,0.00047945,30]
[358923071,1745545815340,-1098.22,0.00047945,30]
[358923072,1745545815391,-7163.15,0.00047945,30]
[358923073,1745545815442,-887.54,0.00047945,30]
[358923074,1745545815491,-1248.48,0.00047945,30]
[358923075,1745545815539,-500.0,0.00047945,30]
[358923076,1745545815588,-500.0,0.00047945,30]
[358923077,1745545815645,-500.0,0.00047945,30]
[358923078,1745545815711,-1651.06,0.00047945,30]
[358923079,1745545815763,-2239.84,0.00047945,30]
[358923080,1745545815812,-500.0,0.00047945,30]
[358923081,1745545815862,-508.52,0.00047945,30]
[358923082,1745545815912,-500.0,0.00047945,30]
[358923083,1745545815961,-500.0,0.00047945,30]
[358923084,1745545816011,-500.0,0.00047945,30]
[358923085,1745545816059,-864.33,0.00047945,30]
[358923086,1745545816108,-505.78,0.00047945,30]
[358923087,1745545816156,-632.89,0.00047945,30]
[358923088,1745545816205,-1001.68,0.00047945,30]
[358923089,1745545816254,-500.0,0.00047945,30]
[358923090,1745545816303,-500.0,0.00047945,30]
[358923091,1745545816354,-1483.77,0.00047945,30]
[358923092,1745545816405,-500.0,0.00047945,30]
[358923093,1745545816455,-1236.74,0.00047945,30]
[358923094,1745545816503,-491.6605859,0.00047945,30]
[358923095,1745545816552,-500.0,0.00047945,30]
[358923096,1745545816603,-547.04,0.00047945,30]
[358923097,1745545816655,-500.0,0.00047945,30]
[358923098,1745545816704,-500.0,0.00047945,120]
[358923099,1745545816753,-500.0,0.00047945,30]
[358923100,1745545816807,-551.27,0.00047945,30]
[358923101,1745545816862,-500.0,0.00047945,30]
[358923102,1745545816910,-500.0,0.00047945,30]
[358923103,1745545816960,-782.79,0.00047945,30]
[358923104,1745545817009,-500.0,0.00047945,30]
[358923105,1745545817057,-500.0,0.00047945,30]
[358923106,1745545817104,-500.0,0.00047945,30]
[358923107,1745545817151,-500.0,0.00047945,30]
[358923108,1745545817199,-500.0,0.00047945,30]
[358923109,1745545817245,-500.0,0.00047945,30]
[358923110,1745545817295,-1416.53,0.00047945,30]
[358923111,1745545817343,-500.0,0.00047945,30]
[358923112,1745545817389,-500.0,0.00047945,30]
[358923113,1745545817437,-894.51,0.00047945,30]
[358923114,1745545817487,-500.0,0.00047945,30]
[358923115,1745545817536,-500.0,0.00047945,30]
[358923116,1745545817583,-500.0,0.00047945,30]
[358923117,1745545817634,-1380.06,0.00047945,30]
[358923118,1745545817681,-500.0,0.00047945,30]
[358923119,1745545817730,-500.0,0.00047945,30]
[358923120,1745545817777,-1109.29,0.00047945,30]
[358923121,1745545817827,-500.0,0.00047945,30]
[358923122,1745545817880,-982.48,0.00047945,30]
[358923123,1745545817930,-1800.8,0.00047945,30]
[358923124,1745545817977,-612.25,0.00047945,30]
[358923125,1745545818025,-884.99,0.00047945,30]
[358923126,1745545818076,-695.17,0.00047945,30]
[358923127,1745545818124,-665.85,0.00047945,30]
[358923128,1745545818171,-1088.74,0.00047945,30]
[358923129,1745545818219,-500.0,0.00047945,30]
[358923130,1745545818269,-734.7,0.00047945,30]
[358923131,1745545818319,-1916.97,0.00047945,30]
[358923132,1745545818369,-596.84,0.00047945,30]
[358923133,1745545818417,-500.0,0.00047945,30]
[358923134,1745545818482,-509.35,0.00047945,30]
[358923135,1745545818534,-500.0,0.00047945,30]
[358923136,1745545818586,-615.79764007,0.00047945,30]
[358923137,1745545818640,-500.0,0.00047945,30]
[358923138,1745545818694,-500.0,0.00047945,30]
[358923139,1745545818745,-2215.94,0.00047945,30]
[358923140,1745545818795,-556.38,0.00047945,30]
[358923141,1745545818846,-500.0,0.00047945,30]
[358923142,1745545818896,-697.76,0.00047945,30]
[358923143,1745545818945,-4287.81,0.00047945,30]
[358923144,1745545818993,-500.0,0.00047945,30]
[358923145,1745545819042,-682.59,0.00047945,30]
[358923146,1745545819096,-737.75,0.00047945,30]
[358923147,1745545819147,-1995.83,0.00047945,120]
[358923148,1745545819197,-515.03,0.00047945,30]
[358923149,1745545819250,-765.05,0.00047945,30]
[358923150,1745545819301,-1045.74,0.00047945,30]
[358923151,1745545819353,-500.0,0.00047945,30]
[358923152,1745545819412,-500.0,0.00047945,30]
[358923153,1745545819466,-500.0,0.00047945,30]
[358923154,1745545819784,-520.26,0.00047945,30]
[358923155,1745545819841,-500.0,0.00047945,30]
[358923156,1745545819893,-500.0,0.00047945,30]
[358923157,1745545819945,-500.0,0.00047945,30]
[358923158,1745545819997,-500.0,0.00047945,30]
[358923159,1745545820051,-682.45,0.00047945,30]
[358923160,1745545820103,-1909.5,0.00047945,30]
[358923161,1745545820155,-574.53,0.00047945,30]
[358923162,1745545820207,-500.0,0.00047945,30]
[358923163,1745545820258,-695.21,0.00047945,30]
[358923164,1745545820306,-500.0,0.00047945,30]
[358923165,1745545820356,-595.07,0.00047945,30]
[358923166,1745545820406,-500.0,0.00047945,30]
[358923167,1745545820457,-2006.28,0.00047945,30]
[358923168,1745545820506,-696.79,0.00047945,30]
[358923169,1745545820554,-1703.57,0.00047945,30]
[358923170,1745545820602,-536.68,0.00047945,30]
[358923171,1745545820650,-661.83,0.00047945,30]
[358923172,1745545820699,-671.65,0.00047945,30]
[358923173,1745545820747,-990.25,0.00047945,30]
[358923174,1745545820796,-500.0,0.00047945,30]
[358923175,1745545820850,-1139.46,0.00047945,30]
[358923176,1745545820900,-1291.84,0.00047945,30]
[358923177,1745545820947,-353.0512583,0.00047945,30]
[358923178,1745545820994,-500.0,0.00047945,30]
[358923179,1745545821044,-1491.54,0.00047945,30]
[358923180,1745545821090,-500.0,0.00047945,30]
[358923181,1745545821139,-500.0,0.00047945,30]
[358923182,1745545821187,-500.0,0.00047945,30]
[358923183,1745545821237,-1377.9,0.00047945,30]
[358923184,1745545821285,-500.0,0.00047945,30]
[358923185,1745545821335,-1021.1,0.00047945,30]
[358923186,1745545821385,-944.01,0.00047945,30]
[358923187,1745545821433,-500.0,0.00047945,30]
[358923188,1745545821483,-171.24348713,0.00047945,30]
[358923189,1745545821532,-1148.56,0.00047945,30]
[358923190,1745545821583,-1758.33,0.00047945,30]
[358923191,1745545821631,-205.19311795,0.00047945,30]
[358923192,1745545821678,-1342.47,0.00047945,30]
[358923193,1745545821724,-500.0,0.00047945,30]
[358923194,1745545821783,-500.0,0.00047945,30]
[358923195,1745545821833,-500.0,0.00047945,30]
[358923196,1745545821888,-780.33,0.00047945,30]
[358923197,1745545821941,-500.0,0.00047945,30]
[358923198,1745545821991,-602.51,0.00047945,30]
[358923199,1745545822041,-1899.46,0.00047945,30]
[358923200,1745545822093,-200.0,0.00048,85]
[358923201,1745545822143,-1071.0,0.0004815,30]
[358923202,1745545822192,-1269.73,0.00048219,30]
[358923203,1745545822241,-500.0,0.00048219,30]
[358923204,1745545822291,-1618.3,0.00048219,30]
[358923205,1745545822340,-500.0,0.00048219,30]
[358923206,1745545822389,-580.24310931,0.00048219,30]
[358923207,1745545822439,-1638.07,0.00048219,30]
[358923208,1745545822486,-703.28,0.00048219,30]
[358923209,1745545822532,-1425.46,0.00048219,30]